Cogmind - Beta 17 @@@ ROGUE MODE // 2026.07.08 @ 18:45:28 Player: N.W.L. Result: Destroyed by W6-GDS(R) with Subdweller Machine Gun Performance ------------- Evolutions (0) 0 Regions Visited (2) 400 Robots Destroyed (31) 155 Value Destroyed (851) 851 Prototype IDs (0) 0 Alien Tech Used (0) 0 Bonus (0) 0 TOTAL SCORE: 1406 Bonus ------- None Cogmind --------- Core Integrity 0/250 Matter 268/300 Energy 12/100 System Corruption 1% Temperature Cool (0) Movement Treading (160) Location -10/Subcaves Parts ------- > --- POWER (1) -------- (None) > --- PROPULSION (2) --- Spiked Treads Spiked Treads > --- UTILITY (2) ------ (None) > --- WEAPON (2) ------- Subdweller Beam Cannon Slug Cannon > --- INVENTORY (5) ---- Light Treads Seismic Detector Grenade Launcher Mining Laser Peak State ------------ > --- POWER ------------ Ion Engine > --- PROPULSION ------- Light Treads Light Treads > --- UTILITY ---------- Large Storage Unit Makeshift Light Armor Plating > --- WEAPON ----------- Assault Rifle Slug Cannon > --- INVENTORY -------- Light Ion Engine Spiked Treads Structural Scanner Subdweller Optics Improved Terrain Scanner Seismic Detector Scrap Shield Tractor Beam Assault Rifle Assault Rifle Grenade Launcher Grenade Launcher Mining Laser [Rating: 15] Favorites ----------- Power Ion Engine Engine Ion Engine Propulsion Light Treads Treads Light Treads Utility Scrap Shield Device Seismic Detector Storage Large Storage Unit Protection Scrap Shield Weapon Assault Rifle Energy Cannon Subdweller Beam Cannon Ballistic Gun Assault Rifle Ballistic Cannon Slug Cannon Launcher Grenade Launcher Special Weapon Mining Laser Build | -11 -10 -10 ------- Run | Yrd Mat Sub Slots Evolved . | . . . Power . | . . . Propulsion . | . . . Utility . | . . . Weapon . | . . . Parts Attached 19 | 7 2 10 Power 1 | 1 . . Engine 1 | 1 . . Core . | . . . Reactor . | . . . Propulsion 4 | 2 . 2 Treads 4 | 2 . 2 Leg . | . . . Wheel . | . . . Hover . | . . . Flight . | . . . Utility 6 | 2 1 3 Device 1 | 1 . . Storage 2 | 1 1 . Processor . | . . . Hackware . | . . . Protection 3 | . . 3 Artifact . | . . . Weapon 8 | 2 1 5 Energy Gun . | . . . Energy Cannon 1 | . . 1 Ballistic Gun 3 | 2 . 1 Ballistic Cannon 1 | . . 1 Launcher 2 | . 1 1 Special Weapon 1 | . . 1 Impact Weapon . | . . . Slashing Weapon . | . . . Piercing Weapon . | . . . Special Melee Weapon . | . . . Unidentified Prototypes . | . . . Parts Lost 2 | . . 2 Power 1 | . . 1 Propulsion . | . . . Utility 1 | . . 1 Weapon . | . . . Highest Loss Streak 2 | . . 2 To Critical Strikes . | . . . Average Backups 5 | 1 6 5 Power . | . 1 . Propulsion . | . . . Utility 1 | . 2 1 Weapon 2 | . 3 2 Tool/Special . | . . . Unused Backups 5 | . . 5 Power 1 | . . 1 Propulsion . | . . . Utility 4 | . . 4 Weapon . | . . . Tool/Special . | . . . Average Slot Usage (%) 89 | . 95 88 Engine 13 | . 14 13 Treads 26 | . 23 28 Device 5 | . 14 3 Storage 5 | . 14 3 Protection 8 | . . 10 Energy Cannon 7 | . . 9 Ballistic Gun 7 | . 21 3 Ballistic Cannon 3 | . . 4 Launcher 5 | . 6 5 Special Weapon 3 | . . 4 Peak Build Rating 15 | 7 8 15 Average Rating 10 | 5 7 11 On Entrance 5 | . 7 8 Avg Prop Armor Cover (%) . | . . . Naked Turns . | . . . Heaviest Build 38 | 15 31 38 Greatest Support 40 | 40 40 40 Greatest Overweight (x) 1 | 1 1 . Average Overweight (x) . | . . . Largest Inventory Capacity 15 | 8 15 15 Average Capacity 7 | 7 10 7 Most Carried 14 | 5 8 14 Average Carried 6 | 2 6 6 Final Capacity 15 | 8 15 5 Final Carried 8 | 5 8 4 Class Distribution -------------------- 95% | Mutant 4% | Derelict-Mutant Dominant Class ---------------- Mutant | -10/Materials Mutant | -10/Subcaves Resources | -11 -10 -10 ----------- Run | Yrd Mat Sub Matter Collected 941 | 336 142 463 Remotely . | . . . Salvage Created 912 | 180 222 510 Parts 50 | 17 15 18 Haulers Intercepted . | . . . Recyclers Shooed . | . . . Parts Field Recycled . | . . . Retrieved Matter . | . . . Parts Self-Destructed 13 | . . 13 Prevented . | . . . Parts Restored . | . . . Kills | -11 -10 -10 ------- Run | Yrd Mat Sub Combat Hostiles Destroyed 21 | . 7 14 Guns 4 | . 4 . Cannons 11 | . . 11 AOE 5 | . 3 2 Classes Destroyed 7 | 2 4 1 Tunneler 5 | 5 . . Recycler 2 | 1 1 . Operator 1 | . 1 . Watcher 2 | . 2 . Swarmer 3 | . 3 . Grunt 4 | . 4 . Subdweller 14 | . . 14 Best Kill Streak 6 | 6 4 4 Combat Bots Only 4 | . 4 4 Max Kills in Single Turn 1 | 1 1 1 Gunslinging . | . . . Exploded 1 | . 1 1 Melee . | . . . Uniques/NPCs Destroyed . | . . . Combat | -11 -10 -10 -------- Run | Yrd Mat Sub Hostile Shots Fired 98 | . 31 67 Missed 27 | . 10 17 Hits 71 | . 21 50 Projectile 71 | . 21 50 AOE 3 | . . 3 Critical Strikes 1 | . . 1 Damage Taken 1534 | . 302 1232 Core 265 | . 85 180 Absorbed by Shields . | . . . Regen/Repaired (Parts) 97 | . 97 . Core Remaining (%) 100 | 100 . . Volleys Fired 108 | 11 30 67 Largest 2 | 2 2 2 Hottest 120 | 40 40 120 Shots Fired 142 | 22 47 73 Gun 56 | 22 34 . Cannon 70 | . . 70 Launcher 15 | . 13 2 Special 1 | . . 1 Kinetic 90 | 22 34 34 Thermal 37 | . . 37 Explosive 15 | . 13 2 Electromagnetic . | . . . Robot Hit Streak 26 | 2 7 26 Robot Miss Streak 3 | 3 2 3 Penetration Max . | . . . Secondary Targets 1 | . 1 . Max Gunslinging Chain 1 | . 1 . Shots Hit Robots 88 | 8 26 54 Core Hits 40 | 7 16 17 Critical Kills 2 | 1 . 1 Critical Parts Destroyed . | . . . Critical Strikes 5 | 1 . 4 Meltdown 1 | . . 1 Destroy 4 | 1 . 3 Melee Attacks . | . . . Impact . | . . . Slashing . | . . . Piercing . | . . . Sneak Attacks . | . . . Combat Hostiles . | . . . Follow-up Attacks . | . . . Damage Inflicted 2538 | 160 756 1622 Guns 428 | 153 275 . Cannons 1519 | . . 1519 Explosions 584 | . 481 103 Melee . | . . . Ramming 7 | 7 . . Kinetic 1071 | 153 275 643 Thermal 876 | . . 876 Explosive 584 | . 481 103 Electromagnetic . | . . . Impact . | . . . Slashing . | . . . Piercing . | . . . Highest Corruption 1 | . 1 1 Average Corruption 1 | . 1 1 Corruption Purged . | . . . Corruption Blocked . | . . . Effects 11 | . 1 10 Message Errors 2 | . . 2 Matter Fused 4 | . . 4 Heat Flow Errors 2 | . 1 1 Energy Discharges 1 | . . 1 Data Loss (major) 1 | . . 1 Misfires 1 | . . 1 Overload Shots . | . . . Overflow Damage 27 | . 27 . Projectiles . | . . . Explosions 27 | . 27 . Melee . | . . . Knockbacks 2 | . . 2 Impact . | . . . Kinetic 2 | . . 2 Secondary . | . . . Self-Inflicted Damage 79 | . 79 . Shots 3 | . 3 . Rammed 1 | 1 . . Targets Rammed 1 | 1 . . Kicked . | . . . Crushed . | . . . Highest Temperature 292 | . 96 292 Average Temperature 67 | . 49 69 Received Heat Transfer 586 | . 102 484 Siege Activations . | . . . Martial Activations . | . . . Shielding Activations . | . . . Robots Disrupted . | . . . Combat Hostiles . | . . . Robots Corrupted . | . . . Combat Hostiles . | . . . Parts Fried . | . . . Impact Corruptions . | . . . Robots Melted 1 | . . 1 Combat Hostiles 1 | . . 1 Parts Melted 3 | . . 3 Heat Transferred 1184 | . . 1184 Parts Sabotaged . | . . . Parts Stolen . | . . . Parts Stripped . | . . . Power Chain Reactions . | . . . Alert | -11 -10 -10 ------- Run | Yrd Mat Sub Maximum Alert Level 1 | . 1 . Low Security (%) 70 | 100 65 . Level 1 29 | . 34 . Level 2 . | . . . Level 3 . | . . . Level 4 . | . . . Level 5 . | . . . High Security . | . . . Max Security . | . . . Peak Influence 227 | 15 227 . Initial 3 | . 3 . Average 93 | 5 109 . Influence Increases 408 | 30 378 . Destroy 0b10 Robot/C 140 | . 140 . Destroy 0b10 Robot/NC 50 | 30 20 . Destroy Leader 34 | . 34 . Successful Hack 20 | . 20 . Select Force Hacks 30 | . 30 . Disable Machine 45 | . 45 . Destroy Structure 44 | . 44 . Lose Combat Pursuer 45 | . 45 . Influence Decreases 408 | 25 200 183 Entered New Map 91 | . 2 89 Time Decay 317 | 25 198 94 Squads Dispatched 2 | . 2 . Investigation 1 | . 1 . Extermination . | . . . Reinforcement 1 | . 1 . Assault . | . . . Garrison . | . . . Intercept . | . . . Searches Triggered . | . . . Construction Impeded . | . . . Haulers Reinforced . | . . . Active Scanning Responses . | . . . Cargo Convoy Interrupts . | . . . Stealth | -11 -10 -10 --------- Run | Yrd Mat Sub Distress Signals 2 | . 2 . Communications Jammed . | . . . Distress Signals . | . . . Times Spotted 28 | . 14 14 Peak Tracking Total 4 | . 4 2 Tactical Retreats 1 | . 1 . Traps | -11 -10 -10 ------- Run | Yrd Mat Sub Traps Triggered 1 | . 1 . Indirectly . | . . . Trap Hack Attempts . | . . . Triggered . | . . . Disarmed . | . . . Reprogrammed . | . . . Reused . | . . . Traps Extracted . | . . . Installed . | . . . Triggered . | . . . Machines | -11 -10 -10 ---------- Run | Yrd Mat Sub Machines Disabled 3 | . 3 . Max in Single Turn 2 | . 2 . Machines Repaired . | . . . Machines Dismantled . | . . . Machines Sabotaged . | . . . Overloaded Fab Kills . | . . . Hacking | -11 -10 -10 --------- Run | Yrd Mat Sub Machines Accessed 4 | . 4 . Terminals 2 | . 2 . Fabricators . | . . . Repair Stations 1 | . 1 . Recycling Units 1 | . 1 . Scanalyzers . | . . . Garrison Access . | . . . Total Hacks 9 | . 9 . Successful 6 | . 6 . Failed 3 | . 3 . Catastrophic 1 | . 1 . Database Lockouts . | . . . Manual 5 | . 5 . Terminals 5 | . 5 . Fabricators . | . . . Repair Stations 3 | . 3 . Recycling Units 1 | . 1 . Scanalyzers . | . . . Garrison Access . | . . . Terminal Hacks 2 | . 2 . Robot Analysis 1 | . 1 . Zone Layout 1 | . 1 . Fabricator Hacks . | . . . Repair Station Hacks 3 | . 3 . Scan Component 2 | . 2 . Repair 1 | . 1 . Recycling Unit Hacks . | . . . Scanalyzer . | . . . Garrison Access Hacks . | . . . Unauthorized Hacks 1 | . 1 . Terminals . | . . . Fabricators . | . . . Repair Stations . | . . . Recycling Units 1 | . 1 . Tunnel 1 | . 1 . Scanalyzers . | . . . Garrison Access . | . . . Data Cores Recovered 1 | . 1 . Used 1 | . 1 . Hacking Detections 2 | . 2 . Full Trace Events . | . . . Feedback Events . | . . . Feedback Blocked . | . . . Robot Schematics Acquired . | . . . Robots Built . | . . . Authchips . | . . . Time . | . . . Total Robot Build Rating . | . . . Part Schematics Acquired . | . . . Parts Built . | . . . Authchips . | . . . Time . | . . . Total Part Build Rating . | . . . Part Studies Acquired . | . . . Parts Repaired 1 | . 1 . Time 26 | . 26 . Parts Recycled . | . . . Recycled Matter . | . . . Retrieved Matter . | . . . Retrieved Components . | . . . Parts Scanalyzed . | . . . Part Schematics Acquired . | . . . Parts Damaged . | . . . Bothacking | -11 -10 -10 ------------ Run | Yrd Mat Sub Used RIF Installer . | . . . Robots Hacked . | . . . Non-combat . | . . . Combat . | . . . Robot Hacks Applied . | . . . Relay Couplers Released . | . . . Fabnet Peak Effective % . | . . . Robots Rewired . | . . . Allies Hacked . | . . . Hacks Repelled . | . . . Allies | -11 -10 -10 -------- Run | Yrd Mat Sub Total Allies . | . . . Largest Group . | . . . Highest-Rated Group . | . . . Highest-Rated Ally . | . . . Total Orders . | . . . Ally Attacks . | . . . Total Damage . | . . . Kills . | . . . Allies Corrupted . | . . . Allies Melted . | . . . Intel | -11 -10 -10 ------- Run | Yrd Mat Sub Active Infowar (turns) 979 | 16 569 394 Seismic 979 | 16 569 394 Robot Analysis Total 1 | . 1 . Derelict Logs Recovered . | . . . Drone Launches . | . . . Drone Recoveries . | . . . Exploration | -11 -10 -10 ------------- Run | Yrd Mat Sub Turns Passed 2546 | 108 569 1869 Spaces Moved 1321 | 40 279 1002 Core 6 | 6 . . Treads 1315 | 34 279 1002 Legs . | . . . Wheels . | . . . Hover . | . . . Flight . | . . . Fastest Speed 50 | 50 160 160 Average Speed 162 | 147 172 160 Slowest Speed 240 | 160 240 160 Overloaded Moves . | . . . Propulsion Burnouts . | . . . Robots Hopped . | . . . Potential Cave-ins . | . . . Cave-ins Triggered . | . . . Exploration Rate (%) 35 | 4 56 45 Regions Visited 2 Branch Regions 1 Pre-discovered Areas 2 | . 1 1 Known Exits Taken . | . . . Unknown Exits Taken 2 | 1 1 . Scrap Searched 11 | . . 11 Spaces Dug . | . . . Terrain Destroyed 59 | . 41 18 Melee . | . . . Projectile 12 | . . 12 AOE 47 | . 41 6 Terrain Rammed . | . . . Walls Destroyed . | . . . Machines Disabled . | . . . Actions | -11 -10 -10 --------- Run | Yrd Mat Sub Total 1577 | 63 321 1193 Wait 91 | . 6 85 Move 1320 | 40 278 1002 Hop . | . . . Pick Up 14 | 5 3 6 Fast Attach 11 | 7 1 3 Attach 1 | . . 1 Detach 2 | . . 2 Swap 11 | . 2 9 Drop 7 | . 1 6 Fire 108 | 11 30 67 Melee . | . . . Ram . | . . . Kick . | . . . Crush . | . . . Escape Stasis . | . . . Rewire . | . . . Trap . | . . . Miscellaneous 12 | . . 12 Route ------- -11/Scrapyard -10/Materials (discovered 4 exits: [*Mat x2] / [*Min] / [*Sub]) -10/Subcaves History --------- Turn | Location | Event 14 | -11/Scrapyard | Discovered new exit (range 16) 109 | -11/Scrapyard | Entered Materials 270 | -10/Materials | Discovered new exit (range 3) 304 | -10/Materials | Build established: Mutant 465 | -10/Materials | Discovered new exit (range 15) 471 | -10/Materials | Discovered new exit (range 14) 475 | -10/Materials | Repaired Lgt. Treads 669 | -10/Materials | Discovered new exit (range 6) 678 | -10/Materials | Entered Subcaves 679 | -10/Subcaves | Approached by a straggling Scientist 741 | -10/Subcaves | Shifting Twisted Machinery released Spk. Treads 765 | -10/Subcaves | Disturbed a concealed Subdweller 797 | -10/Subcaves | Shifting Twisted Machinery released Mak. Light Armor Plating 1089 | -10/Subcaves | Ambushed by Subdweller buried in earth 1090 | -10/Subcaves | Core integrity fell below 50% 1382 | -10/Subcaves | Learned location of Zion (-7) 1382 | -10/Subcaves | Met a Zionite searching for "candidates" 2045 | -10/Subcaves | Core integrity fell below 20% 2144 | -10/Subcaves | A swath of the cavern ceiling suddenly collapsed 2547 | -10/Subcaves | Destroyed by W6-GDS(R) with Subdweller Machine Gun Last Messages --------------- 02053_ Scrap Shield Fragment affixed to Scrap Shield (+49). 02058_ RX-H6N(R) destroyed. 02062_ Scrap Shield Fragment affixed to Scrap Shield (+48). 02066_ Dropped Scrap Shield Fragment. 02067_ Scrap Shield Fragment affixed to Scrap Shield (+30). 02074_ System corrupted: FCS attempts to trigger Sub. Beam Cannon. 02074_ System corrupted: Sub. Beam Cannon misfires. 02131_ BKQ%B:IT